bitfinex-derivatives/quotes_ETHF0:USTF0_20240924
["timestamp","ask_amount","ask_price","bid_price","bid_amount"]
[1727171884462,0.37793,2646.1,2645.9,0.78375]
[1727171884665,0.37794,2646.0,2645.9,2.2690628]
[1727171884968,0.37794,2646.0,2645.9,2.96963666]
[1727171885463,0.37794,2646.0,2645.9,3.46709512]
[1727171885768,0.37794,2646.0,2645.9,1.98178232]
[1727171885968,0.37794,2646.1,2646.0,0.37794]
[1727171886167,0.37794,2646.1,2646.0,1.36582031]
[1727171886866,0.37794,2646.1,2646.0,2.56396841]
[1727171887069,0.37794,2646.1,2646.0,0.98788031]
[1727171887469,0.37794,2646.1,2646.0,1.36582031]
[1727171888062,0.37794,2646.1,2646.0,0.98788031]
[1727171888365,0.37794,2646.0,2645.9,1.39368031]
[1727171888570,0.37794,2646.0,2645.9,1.77164031]
[1727171889265,0.37794,2646.0,2645.9,2.96995893]
[1727171889573,0.37794,2646.0,2645.9,1.77164031]
[1727171890468,0.37794,2646.0,2645.9,1.39368031]
[1727171890667,0.37794,2646.0,2645.9,1.77164031]
[1727171891265,0.37794,2646.1,2646.0,0.37794]
[1727171891465,3.02792,2646.2,2646.1,0.37793]
[1727171892272,2.65,2646.2,2646.1,0.37793]
[1727171893475,3.02791,2646.2,2646.1,0.37793]
[1727171894370,0.37789,2646.4,2646.1,0.98788031]
[1727171894568,0.37789,2646.4,2646.3,0.37789]
[1727171895471,0.37789,2646.4,2646.3,1.19459]
[1727171896871,3.82488,2646.5,2646.4,0.37789]
[1727171897875,2.65,2646.6,2646.5,0.37787]
[1727171898072,0.4184,2646.8,2646.3,2.19088031]
[1727171898273,0.37785,2646.7,2646.6,0.37785]
[1727171899076,0.37785,2646.7,2646.4,1.4853128]
[1727171899077,3.7784,2646.6,2645.8,0.088]
[1727171899273,3.7784,2646.6,2645.7,0.7663]
[1727171899274,1.32291,2645.8,2645.7,0.7663]
[1727171899478,0.37801,2645.5,2645.4,3.2078]
[1727171899679,0.37801,2645.6,2645.4,4.78375391]
[1727171899980,0.37801,2645.6,2645.5,0.3891]
[1727171900575,2.65,2645.8,2645.5,0.3891]
[1727171900771,3.02798,2645.8,2645.6,0.37799]
[1727171900980,3.02798,2645.8,2645.7,0.37799]
[1727171901277,2.65,2645.8,2645.7,0.37799]
[1727171901482,2.65,2646.0,2645.6,0.3968]
[1727171901684,3.02795,2646.0,2645.9,0.37796]
[1727171904784,0.37797,2645.9,2645.8,0.37796]
[1727171905777,0.37795,2646.0,2645.9,0.37795]
[1727171909579,3.02793,2646.1,2646.0,0.37794]
[1727171909984,0.37792,2646.2,2646.1,0.37792]
[1727171911489,3.02791,2646.3,2646.2,0.37791]
[1727171913480,0.37793,2646.2,2646.1,0.37792]
[1727171914989,0.94473,2646.4,2646.3,0.37789]
[1727171914990,0.37789,2646.4,2646.3,0.37789]
[1727171915588,3.02789,2646.5,2646.4,0.37789]
[1727171915987,2.65,2646.5,2646.4,0.37789]
[1727171916185,3.02787,2646.5,2646.4,0.37789]
[1727171916487,2.65,2646.5,2646.4,0.37789]
[1727171916790,1.38589878,2646.8,2646.7,0.37784]
[1727171916791,3.63169878,2646.8,2646.7,0.37784]
[1727171916983,0.37783,2646.9,2646.8,0.37783]
[1727171919986,0.37784,2646.7,2646.6,0.78205]
[1727171920987,0.37784,2646.7,2646.6,1.18885]
[1727171921186,0.37784,2646.8,2646.7,0.37783]
[1727171922191,4.57621878,2647.0,2646.7,0.37783]
[1727171922392,0.37784,2646.8,2646.7,0.37783]
[1727171923087,4.57621878,2647.0,2646.6,1.18884]
[1727171923088,0.37784,2646.7,2646.6,1.18884]
[1727171923590,0.37784,2646.7,2646.6,4.96724]
[1727171924092,0.37784,2646.7,2646.6,0.4068]
[1727171924592,1.32245,2646.7,2646.6,0.4068]
[1727171925695,0.37784,2646.7,2646.6,0.78466]
[1727171926991,3.02784,2646.8,2646.7,0.37784]
[1727171927193,0.37784,2646.8,2646.7,0.37784]
[1727171929586,0.37784,2646.7,2646.6,0.78465]
[1727171930497,1.35953878,2646.7,2646.6,0.78466]
[1727171930698,0.37784,2646.7,2646.6,0.78466]
[1727171935186,1.35953878,2646.8,2646.7,0.37784]
[1727171935391,0.98169878,2646.9,2646.8,0.37783]
[1727171936093,1.35950878,2646.9,2646.8,0.37783]
[1727171936491,4.00950878,2647.0,2646.9,0.37781]
[1727171936690,4.50143915,2647.0,2646.9,0.37781]
[1727171937087,4.00942569,2647.0,2646.9,0.37781]
[1727171937289,0.9816507,2647.0,2646.7,0.94461]
[1727171937494,1.3594407,2647.1,2647.0,0.3778]
[1727171937790,0.9816507,2647.2,2647.1,0.37779]
[1727171938104,2.65,2647.4,2647.3,0.37776]
[1727171938292,0.757,2647.5,2647.4,0.37773]
[1727171938293,0.37773,2647.5,2647.4,0.37773]
[1727171938601,0.37773,2647.5,2647.3,0.37775]
[1727171938795,0.37774,2647.4,2647.3,0.37775]
[1727171938989,0.37774,2647.5,2647.3,0.37775]
[1727171939298,0.37773,2647.5,2647.4,0.37774]
[1727171939598,2.65,2647.6,2647.4,0.37773]
[1727171939893,0.37773,2647.5,2647.4,0.37773]
[1727171940297,3.02773,2647.6,2647.4,0.37773]
[1727171940498,7.4489,2647.8,2647.1,4.15225]
[1727171940499,3.5753,2647.8,2647.1,4.15225]
[1727171940694,0.37768,2647.9,2647.7,0.37769]
[1727171940894,0.37767,2647.9,2647.8,0.3765]
[1727171941690,3.02767,2648.0,2647.8,0.75418]
[1727171941895,0.37767,2647.9,2647.8,0.75418]
[1727171942299,3.02766,2648.0,2647.8,0.3765]
[1727171942595,3.02766,2648.0,2647.9,0.37767]
[1727171943102,2.65,2648.0,2647.9,0.37767]
[1727171943689,0.37769,2647.8,2647.7,0.3777]
[1727171943893,0.3777,2647.7,2647.6,0.37771]
[1727171944100,0.37771,2647.6,2647.5,0.7705]
[1727171944302,3.02771,2647.6,2647.5,0.7705]
[1727171944605,2.65,2647.6,2647.1,3.2078]
[1727171944800,0.37776,2647.3,2647.2,1.09907]
[1727171944994,0.37777,2647.2,2647.1,3.2078]
[1727171945200,0.37779,2647.1,2647.0,0.3778]
[1727171945597,0.37779,2647.1,2646.9,1.1358]
[1727171945799,2.65,2647.2,2647.0,0.37779]
[1727171946004,0.37779,2647.1,2647.0,0.37779]
[1727171946304,3.02779,2647.2,2647.0,0.37779]
[1727171946503,2.65,2647.4,2647.1,0.37779]
[1727171946707,0.37777,2647.2,2647.1,0.37779]
[1727171947005,4.90074,2647.5,2647.1,0.37779]
[1727171947194,0.37777,2647.2,2647.1,0.37779]
[1727171948508,7.55074,2647.5,2646.9,0.758]
[1727171948509,4.34294,2647.5,2647.2,0.37776]
[1727171948708,0.37774,2647.4,2647.3,0.77335]
[1727171950598,3.7621,2647.5,2647.3,0.3956]
[1727171950805,0.37774,2647.4,2647.3,0.77335]
[1727171951596,3.392,2647.5,2647.3,0.77335]
[1727171951806,3.76973,2647.5,2647.4,0.74054]
[1727171952707,3.392,2647.5,2647.4,0.74054]
[1727171952906,3.76973,2647.5,2647.4,0.74054]
[1727171953904,0.37773,2647.5,2647.4,0.74054]
[1727171957602,0.37773,2647.5,2647.4,0.3628]
[1727171957897,0.94437,2647.4,2647.0,3.58559]
[1727171958104,0.37779,2647.1,2647.0,3.9505]
[1727171958407,0.37779,2647.1,2647.0,3.5727]
[1727171959007,0.37779,2647.1,2647.0,3.9505]
[1727171959308,0.37779,2647.1,2647.0,3.5727]
[1727171959503,0.37779,2647.1,2647.0,3.9505]
[1727171961415,0.37778,2647.2,2647.1,0.37778]
[1727171961710,0.37779,2647.1,2647.0,3.95049]
[1727171964819,1.32226,2647.1,2647.0,3.2078]
[1727171967614,0.37779,2647.1,2647.0,3.5856]
[1727171968519,1.3594307,2647.2,2647.1,0.37779]
[1727171968823,0.37778,2647.2,2647.1,0.37779]
[1727171971814,1.3594307,2647.2,2647.1,0.37779]
[1727171972020,0.37779,2647.1,2647.0,3.58559]
[1727171974016,0.37779,2647.1,2647.0,3.2078]
[1727171974223,7.0259807,2647.1,2647.0,3.2078]
[1727171974520,10.92285915,2647.1,2647.0,3.2078]
[1727171974932,14.24085915,2647.1,2647.0,3.2078]
[1727171975222,12.76723,2647.1,2647.0,3.2078]
[1727171977822,7.68126,2647.1,2647.0,3.2078]
[1727171978023,7.29026,2647.1,2647.0,3.2078]
[1727171981030,7.29026,2647.1,2647.0,3.5758]
[1727171983328,7.29026,2647.1,2647.0,3.9536]
[1727171983329,0.37779,2647.1,2647.0,3.9536]
[1727171983722,0.37779,2647.1,2647.0,5.13482877]
[1727171984121,0.37779,2647.1,2647.0,3.9536]
[1727171984333,1.59779,2647.1,2647.0,3.9536]
[1727171984937,1.59779,2647.1,2647.0,5.13480589]
[1727171985121,1.59779,2647.1,2647.0,3.9536]
[1727171985323,1.59779,2647.1,2647.0,3.5758]
[1727171985731,1.59779,2647.1,2647.0,4.75696598]
[1727171986024,1.59779,2647.1,2647.0,3.5758]
[1727171986532,1.59779,2647.1,2647.0,3.9536]
[1727171986731,1.59779,2647.1,2647.0,0.7458]
[1727171988435,1.59779,2647.1,2647.0,1.92740289]
[1727171988731,1.59779,2647.1,2647.0,3.40874638]
[1727171989126,1.59779,2647.1,2647.0,3.40869334]
[1727171989633,1.59779,2647.1,2647.0,1.92734985]
[1727171989828,1.59779,2647.1,2647.0,3.41299655]
[1727171990536,3.56276983,2647.1,2647.0,0.7458]
[1727171991833,2.54226,2647.1,2647.0,0.368]
[1727171992533,4.98532544,2647.1,2647.0,0.368]
[1727171993037,2.54226,2647.1,2647.0,0.368]
[1727171995835,2.34788031,2647.1,2647.0,0.7458]
[1727171997339,0.37779,2647.1,2647.0,3.41362382]
[1727171997640,7.26433,2647.1,2647.0,3.03582382]
[1727171997932,1.32235,2646.9,2646.8,0.7729]
[1727171998137,1.32235,2646.9,2646.8,3.44126947]
[1727171998138,2.54235,2646.9,2646.8,3.44126947]
[1727171999032,2.54235,2646.9,2646.8,3.44131051]
[1727171999234,2.54235,2646.9,2646.8,3.44136862]
[1727171999541,2.54235,2646.9,2646.8,2.33307251]
[1727171999542,1.59781,2646.9,2646.8,2.33307251]
[1727172000241,1.59781,2646.9,2646.8,1.95524251]
[1727172000638,1.59781,2646.9,2646.8,2.33307251]
[1727172001132,6.32075,2646.9,2646.8,2.66875605]
[1727172002237,6.32075,2646.9,2646.8,2.66893515]
[1727172002431,6.32075,2646.9,2646.8,1.18252161]
[1727172002627,8.25040579,2646.9,2646.8,1.18252161]
[1727172003237,8.25040579,2646.9,2646.7,1.48650014]
[1727172003238,1.32241,2646.8,2646.7,1.48650014]
[1727172003433,0.37783,2646.8,2646.7,1.48650014]
[1727172003636,1.59783,2646.8,2646.7,1.48650014]
[1727172003832,2.54241,2646.8,2646.7,1.48650014]
[1727172004746,0.37783,2646.8,2646.7,1.86434014]
[1727172004945,1.59783,2646.8,2646.7,1.86434014]
[1727172005240,1.59783,2646.8,2646.7,1.48650014]
[1727172005632,2.54241,2646.8,2646.7,2.66923591]
[1727172007834,2.54241,2646.8,2646.7,1.48650014]
[1727172009035,1.59783,2646.8,2646.7,1.86434014]
[1727172009645,0.37782,2646.9,2646.7,1.48650014]
[1727172009947,0.37782,2646.9,2646.8,0.37781]
[1727172012546,0.37783,2646.8,2646.7,1.86433014]
[1727172012843,1.59782,2646.9,2646.8,0.37783]
[1727172013444,5.15281,2647.0,2646.9,0.37781]
[1727172014146,1.59781,2647.0,2646.9,0.37781]
[1727172016347,1.59781,2647.0,2646.5,5.32308]
[1727172016348,0.37784,2646.9,2646.8,0.37782]
[1727172017450,1.59784,2646.9,2646.8,0.37782]
[1727172018938,1.59784,2646.9,2646.8,3.92716759]
[1727172019342,1.59784,2646.9,2646.8,0.37782]
[1727172024849,0.37783,2646.8,2646.7,1.36920567]
[1727172025057,7.52356587,2646.8,2646.7,0.99136567]
[1727172025257,1.32251,2646.6,2646.5,0.7744]
[1727172025451,0.37786,2646.6,2646.5,0.7744]
[1727172026960,12.70512607,2646.6,2646.2,0.99136567]
[1727172027156,0.37791,2646.2,2646.1,0.746]
[1727172027463,0.37796,2645.9,2645.8,4.19916567]
[1727172027760,0.37796,2645.9,2645.8,3.2078]
[1727172028149,2.2039843,2646.0,2645.7,1.36216567]
[1727172028150,0.37797,2645.8,2645.7,1.36216567]
[1727172028353,1.59797,2645.8,2645.7,0.3708]
[1727172028652,2.5819543,2645.8,2645.7,0.3708]
[1727172028860,0.378,2645.6,2645.5,0.3819]
[1727172029056,1.598,2645.6,2645.5,0.3819]
[1727172029357,1.22,2645.6,2645.5,1.56212235]
[1727172029563,1.22,2645.6,2645.5,3.04917085]
[1727172029956,1.598,2645.6,2645.5,3.04917085]
[1727172030160,1.598,2645.6,2645.5,1.37019712]
[1727172030161,1.22,2645.6,2645.5,1.37019712]
[1727172030355,1.22,2645.6,2645.5,0.3819]
[1727172030549,1.598,2645.6,2645.5,0.3819]
[1727172030859,1.22,2645.6,2645.5,0.3819]
[1727172031061,1.598,2645.6,2645.5,0.7506]
[1727172031263,0.378,2645.6,2645.5,0.7506]
[1727172031448,1.598,2645.6,2645.5,0.7506]
[1727172032553,1.22,2645.6,2645.5,0.7506]
[1727172033153,1.22,2645.6,2645.5,1.12861]
[1727172034265,1.22,2645.7,2645.6,0.378]
[1727172034860,4.776,2646.1,2645.8,0.37796]
[1727172035065,0.37795,2646.0,2645.9,0.75836]
[1727172035357,0.37795,2646.0,2645.9,0.3804]
[1727172037664,0.37795,2646.0,2645.9,0.75836]
[1727172037863,6.987,2646.0,2645.5,0.3819]
[1727172038163,6.987,2646.0,2645.7,0.37799]
[1727172038164,0.37798,2645.8,2645.7,0.37799]
[1727172038963,0.37799,2645.7,2645.6,0.76009]
[1727172039166,1.59799,2645.7,2645.6,0.76009]
[1727172039663,1.22,2646.1,2645.6,4.1621]
[1727172039865,1.59794,2646.1,2646.0,0.37794]
[1727172040368,0.37794,2646.0,2645.9,0.37795]
[1727172040668,1.22,2646.0,2645.9,0.37795]
[1727172043366,1.22,2646.0,2645.8,0.98829712]
[1727172043570,1.59796,2646.0,2645.9,0.37796]
[1727172043862,0.37796,2645.9,2645.8,0.37796]
[1727172044064,0.37796,2645.9,2645.8,1.36625712]
[1727172045473,0.37796,2645.9,2645.8,3.04435843]
[1727172045857,0.37796,2645.9,2645.8,1.55730993]
[1727172046062,0.37796,2645.9,2645.8,3.04435843]
[1727172046365,1.22,2646.0,2645.9,0.37796]
[1727172046366,1.59795,2646.0,2645.9,0.37796]
[1727172046672,1.59795,2646.0,2645.9,1.36668031]
[1727172047267,1.59795,2646.0,2645.9,2.54705011]
[1727172047469,1.59795,2646.0,2645.9,1.36668031]
[1727172048179,1.59795,2646.0,2645.9,3.04610144]
[1727172048880,1.22,2646.0,2645.9,1.36772938]
[1727172049175,1.22,2646.0,2645.9,1.55904713]
[1727172049581,1.59794,2646.0,2645.9,1.55904713]
[1727172049875,1.59794,2646.0,2645.9,3.04453117]
[1727172050176,1.59794,2646.0,2645.9,1.55979135]
[1727172051183,1.59794,2646.0,2645.9,1.92239135]
[1727172051573,1.59794,2646.0,2645.9,2.9128135]
[1727172052085,1.59794,2646.0,2645.9,1.92239135]
[1727172052768,1.59794,2646.0,2645.9,2.91286394]
[1727172052968,1.59794,2646.0,2645.9,1.92239135]
[1727172053873,1.59794,2646.0,2645.9,2.91290348]
[1727172054077,1.59794,2646.0,2645.9,2.91295159]
[1727172054078,1.22,2646.0,2645.9,2.91295159]
[1727172054291,1.22,2646.0,2645.9,3.40802457]
[1727172054985,1.59794,2646.0,2645.9,1.92239135]
[1727172055481,1.22,2646.0,2645.9,1.92239135]
[1727172055883,1.22,2646.0,2645.9,3.40802457]
[1727172058488,0.37792,2646.2,2645.9,3.40802457]
[1727172058489,1.22,2646.1,2646.0,0.37794]
[1727172058779,1.22,2646.1,2646.0,3.80545319]
[1727172058989,1.22,2646.1,2646.0,4.75031319]
[1727172059195,1.22,2646.1,2646.0,2.31957135]
[1727172059688,1.22,2646.1,2646.0,6.66645961]
[1727172059883,1.22,2646.1,2646.0,3.12043198]
[1727172060081,1.22,2646.1,2646.0,6.6666559]
[1727172062595,1.59793,2646.1,2646.0,6.3001559]
[1727172062884,1.59793,2646.1,2646.0,5.52892858]
[1727172063089,2.54276,2646.1,2646.0,1.18207464]
[1727172063288,2.54276,2646.1,2646.0,2.66801162]
[1727172063482,2.54276,2646.1,2646.0,1.18207464]
[1727172063989,2.92106,2646.1,2646.0,1.18207464]
[1727172064478,2.92106,2646.1,2646.0,2.66808259]
[1727172068282,6.70026,2646.1,2646.0,2.66833321]
[1727172068489,10.85289,2646.1,2646.0,0.99082224]
[1727172068893,2.26766,2646.0,2645.9,0.99082224]
[1727172069094,7.62716,2646.0,2645.9,2.17321418]
[1727172069302,7.62716,2646.0,2645.9,0.99082224]
[1727172074591,7.62716,2646.0,2645.8,0.99082224]
[1727172074592,2.26776,2645.9,2645.8,0.99082224]
[1727172074893,1.32291,2645.8,2645.7,0.99082224]
[1727172075194,2.54291,2645.8,2645.7,0.99082224]
[1727172075993,2.93851,2645.8,2645.7,0.99082224]
[1727172076587,2.93851,2645.8,2645.7,2.17360562]
[1727172077398,2.93851,2645.8,2645.7,0.99082224]
[1727172077893,2.93851,2645.8,2645.7,2.17370284]
[1727172078397,16.87125,2645.8,2645.7,0.99082224]
[1727172078791,16.93198522,2645.8,2645.7,0.99082224]
[1727172080096,16.87125,2645.8,2645.7,0.99082224]
[1727172080294,16.93197948,2645.8,2645.7,0.99082224]
[1727172080601,16.87125,2645.8,2645.7,0.99082224]
[1727172081698,10.87125,2645.8,2645.7,0.99082224]
[1727172082091,9.53071,2645.8,2645.7,0.99082224]
[1727172082297,9.53071,2645.8,2645.7,1.77812224]
[1727172082502,6.32291,2645.8,2645.7,1.77812224]
[1727172082994,6.32291,2645.8,2645.7,0.7873]
[1727172084288,2.54291,2645.8,2645.7,0.7873]
[1727172084491,0.98187466,2646.0,2645.7,0.7873]
[1727172084698,0.98187466,2646.0,2645.8,1.36878224]
[1727172084699,0.37796,2645.9,2645.8,1.36878224]
[1727172084898,1.59796,2646.0,2645.9,0.37796]
[1727172085094,0.37796,2645.9,2645.8,1.36878224]
[1727172085288,0.37796,2645.9,2645.8,2.55029243]
[1727172085600,0.37796,2645.9,2645.8,2.55029811]
[1727172086100,0.37796,2645.9,2645.8,1.55947587]
[1727172086900,0.37796,2645.9,2645.8,2.54959735]
[1727172087103,0.37796,2645.9,2645.8,2.5496039]
[1727172087406,0.37796,2645.9,2645.8,1.55948242]
[1727172087994,0.37796,2645.9,2645.8,2.54961919]
[1727172088297,0.37796,2645.9,2645.8,2.54962124]
[1727172088893,0.37796,2645.9,2645.8,0.37797]
[1727172088894,1.85077199,2645.9,2645.8,0.37797]
[1727172089102,0.37796,2645.9,2645.8,0.37797]
[1727172090496,6.87174933,2646.0,2645.4,4.15287]
[1727172090697,0.37797,2645.9,2645.8,0.77776]
[1727172091599,2.34169933,2646.0,2645.9,0.37796]
[1727172091809,3.56169933,2646.0,2645.9,0.75826]
[1727172092109,2.69306707,2646.0,2645.9,0.75826]
[1727172092296,1.22,2646.0,2645.9,0.75826]
[1727172092498,3.18374933,2646.0,2645.9,0.75826]
[1727172092698,1.22,2646.0,2645.9,0.75826]
[1727172093103,1.59794,2646.0,2645.9,0.75826]
[1727172093306,1.22,2646.0,2645.9,0.75826]
[1727172095007,2.69309625,2646.0,2645.9,0.75826]
[1727172095813,3.07103625,2646.0,2645.9,0.75826]
[1727172096019,1.59794,2646.0,2645.9,0.75826]
[1727172096309,3.07125768,2646.0,2645.9,0.75826]
[1727172096508,3.07132141,2646.0,2645.9,0.75826]
[1727172097005,1.59794,2646.0,2645.9,2.93783672]
[1727172098011,1.59794,2646.0,2645.9,2.93785457]
[1727172099408,4.63282,2646.2,2645.9,2.93785457]
[1727172099605,0.37794,2646.1,2646.0,1.36807099]
[1727172099809,1.59794,2646.1,2646.0,1.36807099]
[1727172100527,1.59794,2646.1,2645.9,1.86630795]
[1727172100528,0.37794,2646.0,2645.9,1.74843174]
[1727172100714,1.59794,2646.0,2645.9,2.9378935]
[1727172100911,1.59794,2646.0,2645.9,1.94771176]
[1727172101106,1.59794,2646.0,2645.9,3.30608741]
[1727172101711,1.22,2646.0,2645.9,3.30609361]
[1727172101899,1.22,2646.0,2645.9,2.31591288]
[1727172103009,1.22,2646.0,2645.9,3.30609775]
[1727172103010,1.59794,2646.0,2645.9,3.30609775]
[1727172103309,1.59794,2646.0,2645.9,2.9281823]
[1727172103518,1.59794,2646.0,2645.9,1.73868487]
[1727172104007,1.59794,2646.0,2645.9,0.7485]
[1727172105914,1.59794,2646.0,2645.9,1.12646]
[1727172106117,1.59794,2646.0,2645.9,0.7485]
[1727172106616,1.59794,2646.0,2645.9,1.12646]
[1727172106821,2.5428,2646.0,2645.9,0.7485]
[1727172107216,4.50654933,2646.0,2645.9,0.7485]
[1727172107819,2.5428,2646.0,2645.9,0.7485]
[1727172108118,4.50654933,2646.0,2645.9,0.7485]
[1727172108308,1.32286,2645.9,2645.8,0.3998]
[1727172108510,1.32291,2645.8,2645.7,3.5956]
[1727172108816,4.01703668,2645.8,2645.7,3.5956]
[1727172109213,2.54291,2645.8,2645.7,3.5956]
[1727172110511,4.01696963,2645.8,2645.7,3.5956]
[1727172110722,2.54291,2645.8,2645.7,0.3878]
[1727172111118,2.54291,2645.8,2645.7,3.06391794]
[1727172111416,6.32291,2645.8,2645.7,1.19015311]
[1727172112221,6.70161,2645.8,2645.7,1.19015311]
[1727172113108,6.70161,2645.8,2645.7,2.67616106]
[1727172114313,7.64655,2645.8,2645.7,2.67616106]
[1727172115122,7.64655,2645.8,2645.7,1.19015311]
[1727172115325,7.64655,2645.8,2645.7,2.67616106]
[1727172115818,6.70161,2645.8,2645.7,2.67616106]
[1727172116122,6.70161,2645.8,2645.7,2.18100181]
[1727172116319,6.70161,2645.8,2645.7,2.18109814]
[1727172116825,6.70161,2645.8,2645.7,1.19023184]
[1727172118723,6.70161,2645.8,2645.7,2.18106769]
[1727172120423,6.70161,2645.8,2645.7,2.18104021]
[1727172120624,7.64655,2645.8,2645.7,0.99080837]
[1727172121026,8.39755,2645.8,2645.7,0.99080837]
[1727172122830,8.39755,2645.8,2645.7,2.18100738]
[1727172123224,8.39755,2645.8,2645.7,0.99080837]
[1727172123421,7.45261,2645.8,2645.7,0.99080837]
[1727172123620,1.59797,2645.8,2645.7,2.18100006]
[1727172123926,1.59797,2645.8,2645.7,1.56818169]
[1727172124125,1.59797,2645.8,2645.7,2.67619964]
[1727172124630,2.54291,2645.8,2645.7,2.67618915]
[1727172124929,2.52513736,2645.8,2645.1,1.07883618]
[1727172125121,3.86799,2645.7,2645.6,0.3934]
[1727172125318,5.08799,2645.7,2645.6,1.38423618]
[1727172125527,6.03296,2645.7,2645.6,1.38423618]
[1727172125721,7.0149873,2645.7,2645.6,0.3934]
[1727172126117,8.49739949,2645.7,2645.6,0.3934]
[1727172126627,6.03296,2645.7,2645.6,0.3934]
[1727172128232,5.98396,2645.7,2645.6,0.3934]
[1727172129031,7.94827752,2645.7,2645.6,0.3934]
[1727172129624,2.34230752,2645.7,2645.6,0.3934]
[1727172129831,7.00330752,2645.7,2645.6,0.3934]
[1727172130517,7.94827752,2645.7,2645.6,0.3934]
[1727172132934,8.0089873,2645.7,2645.6,0.3934]
[1727172134332,7.02664356,2645.7,2645.6,0.3934]
[1727172135631,7.0266456,2645.7,2645.6,0.3934]
[1727172136238,7.02664679,2645.7,2645.6,0.3934]
[1727172138232,0.378,2645.6,2645.5,0.3738]
[1727172138432,9.35349679,2645.6,2645.5,0.7712]
[1727172138825,8.37152301,2645.6,2645.5,0.7712]
[1727172139027,9.35349679,2645.6,2645.5,0.7712]
[1727172139224,8.37152301,2645.6,2645.5,0.7712]
[1727172139739,8.37151733,2645.6,2645.5,0.7712]
[1727172140838,8.31081,2645.6,2645.5,0.7712]
[1727172142235,10.77524949,2645.6,2645.5,0.7712]
[1727172142431,11.99524949,2645.6,2645.5,0.7712]
[1727172143537,8.78744949,2645.6,2645.5,0.7712]
[1727172146235,5.00744949,2645.6,2645.5,0.7712]
[1727172147444,9.73245949,2645.6,2645.5,0.7712]
[1727172148838,7.26802,2645.6,2645.5,0.7712]
[1727172149045,7.26802,2645.6,2645.5,0.3738]
[1727172149246,8.74124386,2645.6,2645.5,0.3738]
[1727172149442,8.74124386,2645.6,2645.5,0.7665]
[1727172151939,4.96124386,2645.6,2645.5,0.7665]
[1727172156251,5.02195854,2645.6,2645.5,0.7665]
[1727172160045,5.02194893,2645.6,2645.5,0.7665]
[1727172160540,4.96124386,2645.6,2645.5,0.7665]
[1727172160746,5.0219488,2645.6,2645.5,0.7665]
[1727172163158,3.48802,2645.6,2645.5,0.7665]
[1727172166553,2.54301,2645.6,2645.5,0.7665]
[1727172166864,2.95732739,2645.9,2645.7,0.37799]
[1727172167151,0.16586412,2645.8,2645.7,0.37798]
[1727172167357,1.47419668,2645.8,2645.7,0.37799]
[1727172167652,2.69419668,2645.9,2645.8,0.37797]
[1727172168054,2.69419668,2645.9,2645.8,4.15717]
[1727172168252,2.69419668,2645.9,2645.8,3.7792]
[1727172168449,2.69419668,2645.9,2645.8,4.15717]
[1727172168859,2.69419668,2645.9,2645.8,10.15717]
[1727172169050,1.22,2645.9,2645.8,4.15717]
[1727172169248,1.47419668,2646.0,2645.9,0.37796]
[1727172169449,0.263,2646.5,2646.1,0.37792]
[1727172169450,3.513,2646.5,2646.1,0.37792]
[1727172169654,3.513,2646.5,2646.2,0.37791]
[1727172169655,1.59789,2646.4,2646.2,0.37791]
[1727172170047,0.37792,2646.2,2646.0,0.37793]
[1727172170358,0.37792,2646.2,2646.1,3.7792]
[1727172170549,0.37792,2646.2,2646.1,4.5284]
[1727172171059,0.37792,2646.2,2646.1,4.90633]
[1727172171455,1.59791,2646.3,2646.1,6.1209197]
[1727172171651,1.59791,2646.3,2646.2,5.98340383]
[1727172171852,1.59791,2646.3,2646.2,4.76881413]
[1727172172561,1.59791,2646.3,2646.2,5.14291413]
[1727172173262,1.59791,2646.3,2646.2,4.1533]
[1727172174453,1.59791,2646.3,2646.2,0.3741]
[1727172180171,1.22,2646.3,2646.2,0.75201]
[1727172180368,1.22,2646.3,2646.2,4.53121]
[1727172180572,1.5979,2646.3,2646.2,4.53121]
[1727172180765,1.5979,2646.3,2646.2,4.1533]
[1727172183661,1.5979,2646.3,2646.2,0.3741]
[1727172183867,2.54266,2646.3,2646.2,0.3741]
[1727172187073,1.5979,2646.3,2646.2,0.3741]
[1727172187660,0.94479,2646.2,2646.0,3.2078]
[1727172187866,0.37793,2646.1,2646.0,3.2078]
[1727172190072,1.32276,2646.1,2646.0,3.2078]
[1727172190365,1.69646,2646.1,2646.0,3.2078]
[1727172190568,0.37796,2645.9,2645.8,0.37797]
[1727172190874,0.37796,2645.9,2645.8,3.58577]
[1727172191071,0.37796,2645.9,2645.8,7.36497]
[1727172191575,0.37796,2645.9,2645.8,4.15717]
[1727172191775,0.37796,2645.9,2645.8,7.36497]
[1727172197273,0.37796,2645.9,2645.8,3.58577]
[1727172201390,0.3737,2646.1,2645.8,3.58577]
[1727172201391,0.37788,2646.5,2646.4,0.37787]
[1727172201679,0.37783,2646.8,2646.7,0.37783]
[1727172201880,1.1217,2646.9,2646.7,0.37783]
[1727172202068,1.49952,2646.9,2646.6,0.98737305]
[1727172202472,1.1217,2646.9,2646.8,0.37783]
[1727172202681,1.49951,2646.9,2646.8,0.37783]
[1727172203383,1.1217,2646.9,2646.8,0.37783]
[1727172205271,1.59778,2647.2,2646.8,3.7784]
[1727172205477,1.59778,2647.2,2647.1,0.37779]
[1727172205478,0.7608,2647.2,2647.1,0.37779]
[1727172205981,1.6108,2647.3,2647.2,0.37777]
[1727172206575,0.3722,2647.5,2647.4,0.37774]
[1727172206778,0.263,2647.8,2647.3,1.5976]
[1727172206779,0.7685,2647.7,2647.3,1.5976]
[1727172207078,0.3847,2647.8,2647.7,0.3777]
[1727172207281,0.75447,2648.0,2647.8,0.37768]
[1727172207474,0.75447,2648.0,2647.6,1.22]
[1727172207475,0.3768,2648.0,2647.6,1.22]